lending/lending_fUSD_20250918
["ID","MTS","AMOUNT","RATE_DAILY","PERIOD"]
[385958834,1758153653269,1425.0,0.00019459,2]
[385958835,1758153694224,-400.0,0.00020507,2]
[385958836,1758153697400,-184.35,0.00020507,2]
[385958841,1758153838685,-225.74131211,0.00020507,2]
[385958842,1758153910996,150.0,0.00019726,2]
[385958843,1758153915260,157.07448983,0.00019726,2]
[385958846,1758153953741,1300.0,0.0001918,2]
[385958847,1758153958926,-167.98,0.00020276,2]
[385958848,1758153989216,154.54,0.00010312,2]
[385958849,1758153989428,154.54,0.00010918,2]
[385958850,1758153989649,154.54,0.00011525,2]
[385958851,1758153990155,154.54,0.00012132,2]
[385958852,1758153990258,154.54,0.00012738,2]
[385958853,1758153990482,154.54,0.00013345,2]
[385958854,1758153990757,154.54,0.00013951,2]
[385958855,1758153990914,154.54,0.00014558,2]
[385958856,1758153991121,154.54,0.00015164,2]
[385958857,1758153991536,154.54,0.00015771,2]
[385958858,1758153991764,154.54,0.00016378,2]
[385958859,1758153991960,154.54,0.00016984,2]
[385958860,1758153992200,154.54,0.00017591,2]
[385958861,1758153992427,154.54,0.00018197,2]
[385958862,1758153992623,154.54,0.00018804,2]
[385958863,1758153992833,154.54,0.0001941,2]
[385958864,1758154085491,-154.54,0.00020017,2]
[385958865,1758154085517,-7.03,0.00020147,2]
[385958869,1758154232139,-292.97,0.00020147,2]
[385958870,1758154232149,-876.28612931,0.0002026,2]
[385958990,1758154238460,-449.65595773,0.0002026,2]
[385958991,1758154238472,-115.44657086,0.0002026,2]
[385958992,1758154238481,-1049.45342914,0.00020276,2]
[385959106,1758154240017,-82.56657086,0.00020276,2]
[385959108,1758154240027,-1152.79,0.00020507,2]
[385959110,1758154240036,-48.091851,0.00020531,2]
[385959121,1758154240127,-201.908149,0.00020531,2]
[385959123,1758154240137,-200.0,0.00020552,2]
[385959125,1758154240147,-4128.01,0.00020572,2]
[385959127,1758154240156,-154.54,0.00020624,2]
[385959129,1758154240166,-1200.0,0.00020633,2]
[385959131,1758154240176,-500.0,0.00020634,3]
[385959133,1758154240185,-1686.53,0.000207,2]
[385959135,1758154240194,-1703.74,0.00020733,2]
[385959137,1758154240204,-159.78,0.00020856,2]
[385959139,1758154240213,-171.3,0.00020874,2]
[385959141,1758154240223,-150.0,0.00020886,2]
[385959143,1758154240232,-666.0,0.0002097,3]
[385959145,1758154240242,-248.71531821,0.00020986,2]
[385959147,1758154240251,-506.59016294,0.00021034,2]
[385959165,1758154240529,-69.70655028,0.00021034,2]
[385959166,1758154240574,-316.62800019,0.00021034,2]
[385959178,1758154245999,-273.76035645,0.0002055,2]
[385959179,1758154246371,-1459.95149822,0.0002055,2]
[385959195,1758154348628,-1431.569066,0.00020447,2]
[385959196,1758154348653,-445.49443289,0.0002055,2]
[385959201,1758154806326,500.0,0.00030136,120]
[385959207,1758155107626,276316.90219943,0.0002,2]
[385959208,1758155107661,167073.98964455,0.0002,2]
[385959209,1758155113276,150.0,0.00019726,2]
[385959210,1758155113344,150.0,0.00019726,2]
[385959211,1758155118236,150.0,0.00019726,2]
[385959212,1758155120883,150.0,0.00019726,2]
[385959213,1758155120948,150.0,0.00019726,2]
[385959214,1758155120988,150.0,0.00019726,2]
[385959215,1758155123921,151.03296031,0.00019726,2]
[385959216,1758155127291,150.0,0.00019726,2]
[385959217,1758155127496,150.0,0.00019726,2]
[385959218,1758155132734,150.0,0.00019726,2]
[385959219,1758155137564,159.65,9.93e-05,2]
[385959220,1758155137767,159.65,0.0001324,2]
[385959221,1758155137966,159.65,0.0001655,2]
[385959222,1758155138243,159.65,0.0001986,2]
[385959223,1758155170821,250.0,0.00019823,2]
[385959224,1758155262555,5914.83716442,0.0002,5]
[385959227,1758155407670,246.75,0.0002,2]
[385959228,1758155408897,-150.0,0.00020028,2]
[385959232,1758155431968,-1000.0,0.00020237,2]
[385959233,1758155431978,-182.88447874,0.00020278,2]
[385959234,1758155431987,-171.3,0.00020319,2]
[385959235,1758155431997,-2658.4,0.00020346,2]
[385959236,1758155432007,-200.0,0.00020414,2]
[385959237,1758155432016,-345.92617598,0.00020447,2]
[385959238,1758155432026,-200.0,0.00020457,2]
[385959239,1758155432035,-1200.0,0.00020486,2]
[385959240,1758155432045,-9297.31,0.00020487,2]
[385959241,1758155432054,-150.0,0.00020516,2]
[385959242,1758155432064,-1815.8920874,0.00020534,2]
[385959243,1758155432074,-6488.8708361,0.00020534,2]
[385959244,1758155432083,-104.70518325,0.00020534,2]
[385959245,1758155432103,-1662.23664992,0.00020534,2]
[385959246,1758155432114,-1028.33216437,0.00020534,2]
[385959247,1758155432143,-555.95959756,0.00020534,2]
[385959248,1758155432153,-1588.8000002,0.00020534,2]
[385959249,1758155432163,-186.29320224,0.00020534,2]
[385959250,1758155432175,-15682.40276976,0.00020534,2]
[385959251,1758155432184,-213.18994792,0.00020546,3]
[385959252,1758155432194,-387.62,0.00020604,3]
[385959253,1758155432203,-500.0,0.0002063,2]
[385959254,1758155432213,-4136.76,0.00020647,2]
[385959255,1758155432223,-268.04,0.00020672,2]
[385959256,1758155432233,-150.0,0.00020696,7]
[385959257,1758155432243,-500.0,0.0002074,2]
[385959258,1758155432252,-1881.0,0.000208,2]
[385959259,1758155432262,-427.74,0.00020808,2]
[385959260,1758155432271,-1074.48473,0.0002082,2]
[385959261,1758155432281,-248.71531821,0.00020849,2]
[385959262,1758155432291,-5226.39215363,0.00020849,2]
[385959263,1758155432301,-500.0,0.00020849,2]
[385959264,1758155432311,-500.0,0.00021019,2]
[385959265,1758155432321,-453.77318325,0.00021019,2]
[385959266,1758155432331,-500.0,0.00021019,2]
[385959267,1758155432340,-358.0158283,0.00021019,2]
[385959268,1758155432350,-500.0,0.00021019,2]
[385959270,1758155432360,-500.0,0.00021019,2]
[385959272,1758155432369,-166.85,0.00021021,2]
[385959274,1758155432379,-322.6107,0.00021021,2]
[385959276,1758155432389,-532.07528659,0.00021034,2]
[385959278,1758155432398,-179.91,0.00021096,2]
[385959280,1758155432407,-500.0,0.00021151,2]
[385959282,1758155432416,-166.27,0.00021159,2]
[385959284,1758155432426,-1097.5609,0.00021321,2]
[385959285,1758155432435,-804.63,0.00021353,2]
[385959287,1758155432445,-162.23,0.00021353,2]
[385959289,1758155432455,-804.63,0.00021354,2]
[385959291,1758155432464,-382.0,0.00021472,2]
[385959294,1758155432474,-1425.0,0.0002151,2]
[385959297,1758155432483,-213.0,0.00021517,2]
[385959299,1758155432493,-516.07479255,0.00021532,3]
[385959300,1758155432502,-1425.0,0.00021533,2]
[385959301,1758155432511,-1000.0,0.00021563,2]
[385959302,1758155432520,-168.0,0.00021569,2]
[385959303,1758155432530,-500.0,0.00021573,2]
[385959304,1758155432539,-600.75930469,0.00021573,2]
[385959305,1758155432548,-500.0,0.00021573,2]
[385959306,1758155432558,-500.0,0.00021573,2]
[385959307,1758155432567,-500.0,0.00021573,2]
[385959308,1758155432577,-150.0,0.00021602,2]
[385959309,1758155432586,-238.86,0.00021617,2]
[385959310,1758155432595,-1425.0,0.00021629,2]
[385959311,1758155432604,-1425.0,0.00021635,2]
[385959312,1758155432614,-238.81,0.00021638,2]
[385959313,1758155432623,-1000.0,0.0002166,2]
[385959314,1758155432633,-1000.0,0.00021673,2]
[385959315,1758155432642,-1425.0,0.00021683,2]
[385959316,1758155432651,-322.0,0.000217,2]
[385959317,1758155432660,-294.14704366,0.00021717,2]
[385959318,1758155432670,-11619.40239551,0.00021717,2]
[385959319,1758155432679,-953.847208,0.00021718,2]
[385959320,1758155432689,-251.44022573,0.00021725,2]
[385959321,1758155432698,-1425.0,0.0002173,2]
[385959322,1758155432708,-200.0,0.00021742,2]
[385959323,1758155432718,-150.0,0.00021756,2]
[385959324,1758155432731,-1000.0,0.00021771,2]
[385959325,1758155432741,-150.0,0.00021784,2]
[385959326,1758155432750,-382.0,0.00021789,2]
[385959327,1758155432759,-1425.0,0.00021796,2]
[385959328,1758155432769,-162.66,0.00021806,2]
[385959329,1758155432778,-311.51,0.00021806,2]
[385959330,1758155432787,-19859.50890962,0.00021816,2]
[385959331,1758155432797,-2111.4406,0.00021817,2]
[385959332,1758155432807,-1000.0,0.00021817,2]
[385959333,1758155432816,-11856.2431,0.00021817,2]
[385959334,1758155432825,-14.61173627,0.00021817,3]
[385959335,1758155432838,-1264.47378747,0.00021817,3]
[385959336,1758155432863,-413.44706878,0.00021817,3]
[385959337,1758155432890,-8168.04350998,0.00021817,3]
[385959338,1758155432901,-54930.68660451,0.00021817,3]
[385959339,1758155432913,-295.99999997,0.00021817,3]
[385959340,1758155432936,-57317.26124535,0.00021817,3]
[385959341,1758155432950,-4049.87139525,0.00021817,3]
[385959342,1758155432973,-1650.21566885,0.00021817,3]
[385959343,1758155438023,-575.53647926,0.00021816,2]
[385959344,1758155438032,-193.5316058,0.00021816,2]
[385959345,1758155438041,-2926.93191494,0.00021817,3]
[385959346,1758155438053,-30896.39669184,0.00021817,3]
[385959347,1758155438079,-1155.0,0.00021817,3]
[385959349,1758155440130,-500.0,0.00021672,2]
[385959350,1758155440140,-393.59846269,0.00021672,2]
[385959351,1758155440149,-8639.73486111,0.00021817,3]
[385959352,1758155440159,-3117.44926046,0.00021817,3]
[385959353,1758155440170,-364.35641615,0.00021817,3]
[385959354,1758155440241,-163689.08752873,0.00021817,3]
[385959355,1758155440251,-2945.0602,0.00021817,2]
[385959356,1758155440260,-5000.0,0.00021817,2]
[385959357,1758155440270,-161.96825644,0.00021817,2]
[385959358,1758155440280,-961.52559253,0.00021817,2]
[385959359,1758155440291,-168.38223959,0.00021817,2]
[385959360,1758155440300,-1074.48474,0.0002182,2]
[385959361,1758155440310,-427.74,0.00021848,2]
[385959362,1758155440319,-626.59526418,0.0002187,2]
[385959363,1758155440328,-150.0,0.00021871,2]
[385959364,1758155440337,-500.0,0.00021872,2]
[385959365,1758155440347,-500.0,0.00021872,2]
[385959366,1758155440356,-500.0,0.00021872,2]
[385959367,1758155440365,-500.0,0.00021872,2]
[385959368,1758155440374,-1883.0,0.00021872,2]
[385959369,1758155440383,-150.0,0.00021872,2]
[385959370,1758155440393,-500.0,0.00021872,2]
[385959371,1758155440402,-500.0,0.00021872,2]
[385959373,1758155440412,-150.0,0.00021872,2]
[385959375,1758155440421,-500.0,0.00021872,2]
[385959377,1758155440430,-219.70457528,0.00021872,2]
[385959379,1758155440439,-150.0,0.00021872,2]
[385959381,1758155440450,-151.42784948,0.00021872,2]
[385959383,1758155440459,-150.0,0.00021872,2]
[385959385,1758155440467,-150.0,0.00021872,2]
[385959387,1758155440478,-150.0,0.00021872,2]
[385959389,1758155440487,-150.0,0.00021872,2]
[385959391,1758155440496,-150.0,0.00021872,2]
[385959393,1758155440505,-150.0,0.00021872,2]
[385959395,1758155440514,-500.0,0.00021872,2]
[385959397,1758155440523,-345.92617593,0.0002188,2]
[385959399,1758155440532,-514.13964029,0.00021889,2]
[385959401,1758155440540,-311.51,0.0002189,2]
[385959403,1758155440550,-900.0,0.000219,6]
[385959405,1758155440559,-150.0,0.000219,2]
[385959407,1758155440568,-150.0,0.000219,2]
[385959409,1758155440578,-12983.7962308,0.000219,2]
[385959411,1758155440587,-238.81,0.000219,2]
[385959413,1758155440596,-81991.40902728,0.00021916,2]
[385959415,1758155440605,-150.0,0.00021916,2]
[385959417,1758155440615,-200.94650692,0.00021916,2]
[385959419,1758155440624,-150.0,0.00021916,2]
[385959421,1758155440634,-150.0,0.00021916,2]
[385959423,1758155440642,-500.0,0.00021916,2]
[385959425,1758155440652,-150.0,0.00021916,2]
[385959427,1758155440661,-500.0,0.00021916,2]
[385959429,1758155440670,-150.0,0.00021916,2]
[385959431,1758155440678,-500.0,0.00021916,2]
[385959433,1758155440687,-150.0,0.00021916,2]
[385959435,1758155440696,-150.0,0.00021916,2]
[385959437,1758155440706,-150.0,0.00021916,2]
[385959439,1758155440715,-150.0,0.00021916,2]
[385959441,1758155440724,-158.535772,0.00021916,2]
[385959443,1758155440733,-151.0,0.00021916,2]
[385959445,1758155440743,-151.0,0.00021916,2]
[385959447,1758155440752,-151.0,0.00021916,2]
[385959449,1758155440761,-151.0,0.00021916,2]
[385959451,1758155440770,-151.0,0.00021916,2]
[385959453,1758155440779,-151.0,0.00021916,2]
[385959455,1758155440788,-151.0,0.00021916,2]
[385959457,1758155440798,-299.650652,0.00021916,2]
[385959459,1758155440807,-151.0,0.00021916,2]
[385959461,1758155440816,-151.0,0.00021916,2]
[385959463,1758155440825,-151.0,0.00021916,2]
[385959465,1758155440834,-151.0,0.00021916,2]
[385959467,1758155440843,-151.0,0.00021916,2]
[385959469,1758155440852,-151.0,0.00021916,2]
[385959471,1758155440861,-151.0,0.00021916,2]
[385959473,1758155440870,-151.0,0.00021916,2]
[385959475,1758155440880,-151.0,0.00021916,2]
[385959477,1758155440890,-151.0,0.00021916,2]
[385959478,1758155440898,-151.0,0.00021916,2]
[385959479,1758155440907,-151.0,0.00021916,2]
[385959480,1758155440916,-151.0,0.00021916,2]
[385959481,1758155440925,-175.356051,0.00021916,2]
[385959482,1758155440934,-175.356051,0.00021916,2]
[385959483,1758155440942,-175.356051,0.00021916,2]
[385959484,1758155440951,-175.356051,0.00021916,2]
[385959485,1758155440960,-151.0,0.00021916,2]
[385959486,1758155440969,-233.745268,0.00021916,2]
[385959487,1758155440978,-160.0,0.00021916,2]
[385959488,1758155440987,-151.0,0.00021916,2]
[385959489,1758155440996,-178.819184,0.00021916,2]
[385959490,1758155441005,-151.0,0.00021916,2]
[385959491,1758155441014,-151.0,0.00021916,2]
[385959492,1758155441023,-151.0,0.00021916,2]
[385959493,1758155441032,-151.195369,0.00021916,2]
[385959494,1758155441041,-151.0,0.00021916,2]
[385959495,1758155441050,-152.528622,0.00021916,2]
[385959496,1758155441059,-151.0,0.00021916,2]
[385959497,1758155441068,-151.0,0.00021916,2]
[385959498,1758155441076,-151.0,0.00021916,2]
[385959499,1758155441086,-151.0,0.00021916,2]
[385959500,1758155441094,-151.0,0.00021916,2]
[385959501,1758155441103,-151.0,0.00021916,2]
[385959502,1758155441112,-233.057604,0.00021916,2]
[385959503,1758155441121,-151.0,0.00021916,2]
[385959504,1758155441130,-204.401473,0.00021916,2]
[385959505,1758155441139,-204.401473,0.00021916,2]
[385959506,1758155441148,-204.401473,0.00021916,2]
[385959507,1758155441157,-204.401473,0.00021916,2]
[385959508,1758155441166,-151.0,0.00021916,2]
[385959509,1758155441175,-214.02866,0.00021916,2]
[385959510,1758155441184,-214.02866,0.00021916,2]
[385959511,1758155441193,-151.0,0.00021916,2]
[385959512,1758155441202,-214.02866,0.00021916,2]
[385959513,1758155441211,-214.02866,0.00021916,2]
[385959514,1758155441221,-151.0,0.00021916,2]
[385959515,1758155441230,-151.0,0.00021916,2]
[385959516,1758155441239,-151.0,0.00021916,2]
[385959517,1758155441248,-151.0,0.00021916,2]
[385959518,1758155441258,-151.0,0.00021916,2]
[385959519,1758155441266,-151.0,0.00021916,2]
[385959520,1758155441275,-300.0,0.00021916,2]
[385959521,1758155441285,-693.0,0.00021917,2]
[385959522,1758155441294,-1199.32544258,0.00021917,2]
[385959523,1758155441306,-214.23120331,0.00021917,2]
[385959524,1758155441315,-400.0,0.00021917,2]
[385959525,1758155441324,-400.0,0.00021917,2]
[385959526,1758155441333,-400.0,0.00021917,2]
[385959527,1758155441342,-400.0,0.00021917,2]
[385959528,1758155441351,-401.38721565,0.00021917,2]
[385959529,1758155441360,-400.0,0.00021917,2]
[385959530,1758155441370,-400.0,0.00021917,2]
[385959531,1758155441379,-400.0,0.00021917,2]
[385959532,1758155441387,-400.85423064,0.00021917,2]
[385959533,1758155441396,-401.29505799,0.00021917,2]
[385959534,1758155441406,-400.0,0.00021917,2]
[385959535,1758155441415,-400.0,0.00021917,2]
[385959536,1758155441423,-400.0,0.00021917,2]
[385959537,1758155441433,-400.0,0.00021917,2]
[385959538,1758155441441,-400.0,0.00021917,2]
[385959539,1758155441451,-400.0,0.00021917,2]
[385959540,1758155441460,-300.34120483,0.00021917,2]
[385959541,1758155441469,-400.0,0.00021917,2]
[385959542,1758155441478,-184.90656621,0.00021917,2]
[385959543,1758155441487,-400.0,0.00021917,2]
[385959544,1758155441496,-400.0,0.00021917,2]
[385959545,1758155441505,-400.0,0.00021917,2]
[385959546,1758155441514,-168.490053,0.00021917,2]
[385959547,1758155441523,-400.0,0.00021917,2]
[385959548,1758155441533,-400.0,0.00021917,2]
[385959549,1758155441542,-400.0,0.00021917,2]
[385959550,1758155441552,-400.0,0.00021917,2]
[385959551,1758155441561,-400.0,0.00021917,2]
[385959552,1758155441570,-400.0,0.00021917,2]
[385959553,1758155441579,-400.0,0.00021917,2]
[385959554,1758155441588,-400.0,0.00021917,2]
[385959555,1758155441598,-400.0,0.00021917,2]
[385959556,1758155441607,-356.942624,0.00021917,2]
[385959557,1758155441616,-400.0,0.00021917,2]
[385959558,1758155441625,-400.0,0.00021917,2]
[385959559,1758155441634,-400.0,0.00021917,2]
[385959560,1758155441644,-400.0,0.00021917,2]
[385959561,1758155441653,-400.0,0.00021917,2]
[385959562,1758155441662,-400.0,0.00021917,2]
[385959563,1758155441671,-400.0,0.00021917,2]
[385959564,1758155441681,-400.0,0.00021917,2]
[385959565,1758155441690,-400.0,0.00021917,2]
[385959566,1758155441700,-400.0,0.00021917,2]
[385959567,1758155441710,-400.0,0.00021917,2]
[385959568,1758155441721,-400.0,0.00021917,2]
[385959569,1758155441730,-400.0,0.00021917,2]
[385959570,1758155441739,-400.0,0.00021917,2]
[385959571,1758155441749,-400.0,0.00021917,2]
[385959572,1758155441757,-400.0,0.00021917,2]
[385959573,1758155441766,-400.0,0.00021917,2]
[385959574,1758155441775,-400.0,0.00021917,2]
[385959575,1758155441785,-400.0,0.00021917,2]
[385959576,1758155441794,-400.0,0.00021917,2]
[385959577,1758155441803,-400.0,0.00021917,2]
[385959578,1758155441812,-400.0,0.00021917,2]
[385959579,1758155441821,-400.0,0.00021917,2]
[385959580,1758155441830,-400.0,0.00021917,2]
[385959581,1758155441839,-400.0,0.00021917,2]
[385959582,1758155441848,-400.0,0.00021917,2]
[385959583,1758155441857,-400.0,0.00021917,2]
[385959584,1758155441866,-400.0,0.00021917,2]
[385959585,1758155441875,-408.16240192,0.00021917,2]
[385959586,1758155441884,-400.0,0.00021917,2]
[385959587,1758155441893,-400.0,0.00021917,2]
[385959588,1758155441902,-400.0,0.00021917,2]
[385959589,1758155441911,-428.12359031,0.00021917,2]
[385959590,1758155441920,-418.13563862,0.00021917,2]
[385959591,1758155441929,-266.56916567,0.00021917,2]
[385959592,1758155441938,-400.0,0.00021917,2]
[385959593,1758155441948,-400.0,0.00021917,2]
[385959594,1758155441958,-400.0,0.00021917,2]
[385959595,1758155441966,-400.0,0.00021917,2]
[385959596,1758155441975,-400.0,0.00021917,2]
[385959597,1758155441984,-401.99989083,0.00021917,2]
[385959598,1758155441993,-400.0,0.00021917,2]
[385959599,1758155442002,-477.9,0.00021917,2]
[385959600,1758155442013,-216.70012408,0.00021917,2]
[385959601,1758155442022,-400.0,0.00021917,2]
[385959602,1758155442031,-400.0,0.00021917,2]
[385959603,1758155442040,-400.0,0.00021917,2]
[385959604,1758155442049,-400.0,0.00021917,2]
[385959605,1758155442059,-232.340758,0.00021917,2]
[385959606,1758155442068,-400.0,0.00021917,2]
[385959607,1758155442077,-400.0,0.00021917,2]
[385959608,1758155442086,-400.0,0.00021917,2]
[385959609,1758155442095,-400.0,0.00021917,2]
[385959610,1758155442104,-151.0,0.00021917,2]
[385959611,1758155442113,-400.0,0.00021917,2]
[385959612,1758155442122,-151.0,0.00021917,2]
[385959613,1758155442132,-151.0,0.00021917,2]
[385959614,1758155442142,-151.0,0.00021917,2]
[385959615,1758155442151,-151.0,0.00021917,2]
[385959616,1758155442162,-151.0,0.00021917,2]
[385959617,1758155442174,-210.605577,0.00021917,2]
[385959618,1758155442184,-400.0,0.00021917,2]
[385959619,1758155442195,-400.0,0.00021917,2]
[385959620,1758155442204,-400.0,0.00021917,2]
[385959621,1758155442213,-400.0,0.00021917,2]
[385959622,1758155442223,-400.0,0.00021917,2]
[385959623,1758155442234,-400.0,0.00021917,2]
[385959624,1758155442244,-400.0,0.00021917,2]
[385959625,1758155442253,-400.0,0.00021917,2]
[385959626,1758155442262,-400.0,0.00021917,2]
[385959627,1758155442271,-500.0,0.00021917,2]
[385959628,1758155442281,-500.0,0.00021917,2]
[385959629,1758155442291,-500.0,0.00021917,2]
[385959630,1758155442300,-400.0,0.00021917,2]
[385959631,1758155442310,-400.0,0.00021917,2]
[385959632,1758155442319,-400.0,0.00021917,2]
[385959633,1758155442329,-400.0,0.00021917,2]
[385959634,1758155442338,-409.08527487,0.00021917,2]
[385959635,1758155442347,-400.0,0.00021917,2]
[385959636,1758155442356,-400.0,0.00021917,2]
[385959637,1758155442366,-400.0,0.00021917,2]
[385959638,1758155442375,-400.0,0.00021917,2]
[385959639,1758155442384,-400.0,0.00021917,2]
[385959640,1758155442393,-400.0,0.00021917,2]
[385959641,1758155442403,-400.0,0.00021917,2]
[385959642,1758155442412,-400.0,0.00021917,2]
[385959643,1758155442421,-400.0,0.00021917,2]
[385959644,1758155442431,-400.0,0.00021917,2]
[385959645,1758155442440,-400.0,0.00021917,2]
[385959646,1758155442452,-400.0,0.00021917,2]
[385959647,1758155442462,-400.0,0.00021917,2]
[385959648,1758155442471,-400.0,0.00021917,2]
[385959649,1758155442482,-400.0,0.00021917,2]
[385959650,1758155442492,-400.0,0.00021917,2]
[385959651,1758155442502,-400.0,0.00021917,2]
[385959652,1758155442511,-400.0,0.00021917,2]
[385959653,1758155442521,-400.0,0.00021917,2]
[385959654,1758155442531,-400.0,0.00021917,2]
[385959655,1758155442540,-400.0,0.00021917,2]
[385959656,1758155442550,-400.0,0.00021917,2]
[385959657,1758155442559,-400.0,0.00021917,2]
[385959658,1758155442568,-400.0,0.00021917,2]
[385959659,1758155442577,-400.0,0.00021917,2]
[385959660,1758155442587,-400.0,0.00021917,2]
[385959661,1758155442734,-400.0,0.00021917,2]
[385959662,1758155442744,-418.84667783,0.00021917,2]
[385959663,1758155442753,-400.0,0.00021917,2]
[385959664,1758155442762,-400.0,0.00021917,2]
[385959665,1758155442771,-400.0,0.00021917,2]
[385959666,1758155442780,-400.0,0.00021917,2]
[385959667,1758155442789,-400.0,0.00021917,2]
[385959668,1758155442799,-400.0,0.00021917,2]
[385959669,1758155442808,-151.0,0.00021917,2]
[385959670,1758155442817,-151.0,0.00021917,2]
[385959671,1758155442826,-400.0,0.00021917,2]
[385959672,1758155442835,-400.0,0.00021917,2]
[385959673,1758155442844,-413.81921777,0.00021917,2]
[385959674,1758155442854,-400.0,0.00021917,2]
[385959675,1758155442863,-400.0,0.00021917,2]
[385959676,1758155442872,-400.0,0.00021917,2]
[385959677,1758155442881,-400.0,0.00021917,2]
[385959678,1758155442890,-401.40113532,0.00021917,2]
[385959679,1758155442898,-400.0,0.00021917,2]
[385959680,1758155442907,-404.45302824,0.00021917,2]
[385959681,1758155442917,-500.0,0.00021917,2]
[385959682,1758155442926,-500.0,0.00021917,2]
[385959683,1758155442936,-500.0,0.00021917,2]
[385959684,1758155442945,-400.0,0.00021917,2]
[385959685,1758155442955,-545.14195017,0.00021917,2]
[385959686,1758155442964,-400.0,0.00021917,2]
[385959688,1758155442974,-400.0,0.00021917,2]
[385959689,1758155442983,-400.0,0.00021917,2]
[385959690,1758155442992,-400.0,0.00021917,2]
[385959691,1758155443002,-500.0,0.00021917,2]
[385959692,1758155443011,-426.70434501,0.00021917,2]
[385959693,1758155443020,-400.0,0.00021917,2]
[385959694,1758155443029,-400.0,0.00021917,2]
[385959695,1758155443039,-400.0,0.00021917,2]
[385959696,1758155443048,-300.0,0.00021917,3]
[385959697,1758155443058,-400.0,0.00021917,2]
[385959698,1758155443067,-300.0,0.00021917,3]
[385959699,1758155443076,-400.0,0.00021917,2]
[385959700,1758155443085,-400.0,0.00021917,2]
[385959701,1758155443094,-400.0,0.00021917,2]
[385959702,1758155443104,-400.0,0.00021917,2]
[385959703,1758155443113,-400.0,0.00021917,2]
[385959704,1758155443122,-400.0,0.00021917,2]
[385959705,1758155443131,-400.0,0.00021917,2]
[385959706,1758155443141,-400.0,0.00021917,2]
[385959707,1758155443151,-400.0,0.00021917,2]
[385959708,1758155443160,-400.0,0.00021917,2]
[385959709,1758155443169,-400.0,0.00021917,2]
[385959710,1758155443179,-400.0,0.00021917,2]
[385959711,1758155443188,-400.0,0.00021917,2]
[385959712,1758155443199,-400.0,0.00021917,2]
[385959713,1758155443208,-400.0,0.00021917,2]
[385959714,1758155443217,-400.0,0.00021917,2]
[385959715,1758155443227,-400.0,0.00021917,2]
[385959716,1758155443237,-400.0,0.00021917,2]
[385959717,1758155443246,-400.0,0.00021917,2]
[385959718,1758155443255,-151.0,0.00021917,2]
[385959719,1758155443264,-400.0,0.00021917,2]
[385959720,1758155443274,-151.0,0.00021917,2]
[385959721,1758155443283,-153.340202,0.00021917,2]
[385959722,1758155443293,-400.0,0.00021917,2]
[385959723,1758155443306,-494.32,0.00021917,2]
[385959724,1758155443315,-400.0,0.00021917,2]
[385959725,1758155443324,-400.0,0.00021917,2]
[385959726,1758155443333,-400.0,0.00021917,2]
[385959727,1758155443345,-400.0,0.00021917,2]